[Event "December 5 Early 2023"]
[Site "https://www.chess.com"]
[Date "2023.12.05"]
[Round "6"]
[White "Garrido, Denis"]
[Black "Martin Fuentes, Alberto"]
[Result "0-1"]
[Board "91"]
[TimeControl "180+1"]
[WhiteFideId "601217"]
[BlackFideId "2292289"]
[WhiteElo "2397"]
[BlackElo "2615"]
[WhiteTeam "FRA"]
[BlackTeam "ESP"]
[WhiteClock "0:00:22"]
[BlackClock "0:01:32"]

1. d4 {[%clk 0:03:00]}  Nf6 {[%clk 0:02:59]} 2. Nf3 {[%clk 0:03:00]}  c5 {[%clk 0:02:59]} 3. d5 {[%clk 0:03:00]}  b5 {[%clk 0:02:59]} 4. Bg5 {[%clk 0:02:57]}  Ne4 {[%clk 0:02:58]} 5. h4 {[%clk 0:02:52]}  Bb7 {[%clk 0:02:54]} 6. a4 {[%clk 0:02:47]}  b4 {[%clk 0:02:52]} 7. e3 {[%clk 0:02:44]}  d6 {[%clk 0:02:49]} 8. a5 {[%clk 0:02:29]}  Ba6 {[%clk 0:02:42]} 9. Bxa6 {[%clk 0:02:26]}  Nxa6 {[%clk 0:02:43]} 10. Qd3 {[%clk 0:02:26]}  Nxg5 {[%clk 0:02:43]} 11. hxg5 {[%clk 0:02:16]}  Nc7 {[%clk 0:02:43]} 12. g6 {[%clk 0:02:04]}  fxg6 {[%clk 0:02:35]} 13. Rxh7 {[%clk 0:02:03]}  Rxh7 {[%clk 0:02:30]} 14. Qxg6+ {[%clk 0:02:03]}  Kd7 {[%clk 0:02:30]} 15. Qf5+ {[%clk 0:02:00]}  e6 {[%clk 0:02:20]} 16. dxe6+ {[%clk 0:02:00]}  Nxe6 {[%clk 0:02:21]} 17. Qxh7 {[%clk 0:02:00]}  Qf6 {[%clk 0:02:21]} 18. Nbd2 {[%clk 0:01:50]}  Be7 {[%clk 0:02:18]} 19. Qe4 {[%clk 0:01:47]}  Rb8 {[%clk 0:02:17]} 20. O-O-O {[%clk 0:01:43]}  Ke8 {[%clk 0:02:13]} 21. Nc4 {[%clk 0:01:42]}  Rd8 {[%clk 0:02:09]} 22. Qc6+ {[%clk 0:01:32]}  Kf8 {[%clk 0:01:58]} 23. Rh1 {[%clk 0:01:31]}  d5 {[%clk 0:01:52]} 24. Nce5 {[%clk 0:01:28]}  Kg8 {[%clk 0:01:50]} 25. Qb7 {[%clk 0:01:13]}  Bd6 {[%clk 0:01:44]} 26. Ng4 {[%clk 0:01:08]}  Qf5 {[%clk 0:01:41]} 27. Rh4 {[%clk 0:00:56]}  c4 {[%clk 0:01:41]} 28. Qxa7 {[%clk 0:00:55]}  b3 {[%clk 0:01:40]} 29. Ne1 {[%clk 0:00:48]}  bxc2 {[%clk 0:01:35]} 30. f3 {[%clk 0:00:28]}  c3 {[%clk 0:01:33]} 31. bxc3 {[%clk 0:00:22]}  Ba3+ {[%clk 0:01:32]} 0-1

[Event "December 5 Early 2023"]
[Site "https://www.chess.com"]
[Date "2023.12.05"]
[Round "6"]
[White "Aswath, S"]
[Black "Georg, Heinz"]
[Result "1-0"]
[Board "94"]
[TimeControl "180+1"]
[WhiteFideId "46694919"]
[BlackFideId "4607295"]
[WhiteElo "2607"]
[BlackElo "2363"]
[WhiteTeam "IND"]
[BlackTeam "GER"]
[WhiteClock "0:00:02"]
[BlackClock "0:00:00"]

1. c4 {[%clk 0:03:00]}  f5 {[%clk 0:02:59]} 2. Nc3 {[%clk 0:02:57]}  Nf6 {[%clk 0:02:59]} 3. g3 {[%clk 0:02:58]}  e5 {[%clk 0:02:58]} 4. Bg2 {[%clk 0:02:57]}  d6 {[%clk 0:02:59]} 5. d3 {[%clk 0:02:57]}  Nc6 {[%clk 0:02:59]} 6. Nf3 {[%clk 0:02:57]}  Be7 {[%clk 0:02:59]} 7. O-O {[%clk 0:02:57]}  O-O {[%clk 0:02:59]} 8. Bg5 {[%clk 0:02:55]}  Be6 {[%clk 0:02:54]} 9. Ne1 {[%clk 0:02:54]}  Ng4 {[%clk 0:02:41]} 10. Bxe7 {[%clk 0:02:52]}  Qxe7 {[%clk 0:02:41]} 11. Nd5 {[%clk 0:02:52]}  Qf7 {[%clk 0:02:40]} 12. e3 {[%clk 0:02:43]}  g5 {[%clk 0:02:30]} 13. b4 {[%clk 0:01:59]}  a6 {[%clk 0:02:25]} 14. f4 {[%clk 0:01:28]}  gxf4 {[%clk 0:02:22]} 15. gxf4 {[%clk 0:01:27]}  Kh8 {[%clk 0:02:16]} 16. Qd2 {[%clk 0:01:25]}  Rg8 {[%clk 0:02:12]} 17. Kh1 {[%clk 0:01:17]}  Qh5 {[%clk 0:02:08]} 18. Bf3 {[%clk 0:01:02]}  Rg7 {[%clk 0:02:06]} 19. Rg1 {[%clk 0:00:44]}  Rag8 {[%clk 0:01:56]} 20. Nc2 {[%clk 0:00:30]}  Qh3 {[%clk 0:01:22]} 21. Qg2 {[%clk 0:00:20]}  Qh4 {[%clk 0:01:22]} 22. Raf1 {[%clk 0:00:17]}  Nf2+ {[%clk 0:01:15]} 23. Rxf2 {[%clk 0:00:17]}  Rxg2 {[%clk 0:01:14]} 24. Rfxg2 {[%clk 0:00:17]}  Rxg2 {[%clk 0:01:14]} 25. Rxg2 {[%clk 0:00:18]}  Bxd5 {[%clk 0:01:01]} 26. Bxd5 {[%clk 0:00:19]}  h6 {[%clk 0:00:50]} 27. b5 {[%clk 0:00:12]}  axb5 {[%clk 0:00:36]} 28. cxb5 {[%clk 0:00:13]}  Nb4 {[%clk 0:00:26]} 29. Nxb4 {[%clk 0:00:06]}  Qe1+ {[%clk 0:00:26]} 30. Rg1 {[%clk 0:00:07]}  Qxb4 {[%clk 0:00:26]} 31. fxe5 {[%clk 0:00:08]}  Qxb5 {[%clk 0:00:20]} 32. e4 {[%clk 0:00:04]}  fxe4 {[%clk 0:00:18]} 33. dxe4 {[%clk 0:00:03]}  dxe5 {[%clk 0:00:17]} 34. h4 {[%clk 0:00:02]}  c6 {[%clk 0:00:17]} 35. Bb3 {[%clk 0:00:03]}  Qd3 {[%clk 0:00:13]} 36. Rg8+ {[%clk 0:00:03]}  Kh7 {[%clk 0:00:13]} 37. Rb8 {[%clk 0:00:03]}  Qxe4+ {[%clk 0:00:13]} 38. Kg1 {[%clk 0:00:04]}  b5 {[%clk 0:00:12]} 39. Rb7+ {[%clk 0:00:03]}  Kg6 {[%clk 0:00:10]} 40. Bf7+ {[%clk 0:00:02]}  Kf5 {[%clk 0:00:10]} 41. h5 {[%clk 0:00:03]}  Kg5 {[%clk 0:00:10]} 42. Bg6 {[%clk 0:00:03]}  Qe3+ {[%clk 0:00:09]} 43. Kf1 {[%clk 0:00:03]}  Qf3+ {[%clk 0:00:04]} 44. Ke1 {[%clk 0:00:03]}  e4 {[%clk 0:00:04]} 45. Re7 {[%clk 0:00:03]}  e3 {[%clk 0:00:04]} 46. Re5+ {[%clk 0:00:02]}  Kh4 {[%clk 0:00:00]} 47. Rf5 {[%clk 0:00:02]} 1-0

[Event "December 5 Early 2023"]
[Site "https://www.chess.com"]
[Date "2023.12.05"]
[Round "6"]
[White "Zivic, Dragan"]
[Black "Jaiveer Mahendru"]
[Result "0-1"]
[Board "95"]
[TimeControl "180+1"]
[WhiteFideId "904740"]
[BlackFideId "25611151"]
[WhiteElo "2347"]
[BlackElo "2605"]
[WhiteTeam "SRB"]
[BlackTeam "IND"]
[WhiteClock "0:00:12"]
[BlackClock "0:00:14"]

1. c4 {[%clk 0:03:00]}  b6 {[%clk 0:02:59]} 2. Nc3 {[%clk 0:03:00]}  Bb7 {[%clk 0:02:59]} 3. Nf3 {[%clk 0:03:00]}  Nf6 {[%clk 0:02:59]} 4. g3 {[%clk 0:03:00]}  d5 {[%clk 0:02:59]} 5. cxd5 {[%clk 0:02:56]}  Nxd5 {[%clk 0:03:00]} 6. Bg2 {[%clk 0:02:53]}  Nxc3 {[%clk 0:02:58]} 7. bxc3 {[%clk 0:02:52]}  g6 {[%clk 0:02:59]} 8. O-O {[%clk 0:02:51]}  Bg7 {[%clk 0:02:59]} 9. d4 {[%clk 0:02:51]}  O-O {[%clk 0:02:59]} 10. Re1 {[%clk 0:02:51]}  Nd7 {[%clk 0:03:00]} 11. e4 {[%clk 0:02:50]}  c5 {[%clk 0:03:00]} 12. Bf4 {[%clk 0:02:43]}  cxd4 {[%clk 0:02:55]} 13. cxd4 {[%clk 0:02:43]}  Rc8 {[%clk 0:02:55]} 14. Rc1 {[%clk 0:02:40]}  b5 {[%clk 0:02:50]} 15. Rxc8 {[%clk 0:02:35]}  Qxc8 {[%clk 0:02:51]} 16. Qb3 {[%clk 0:02:34]}  a6 {[%clk 0:02:48]} 17. Bh3 {[%clk 0:02:16]}  Qd8 {[%clk 0:02:35]} 18. d5 {[%clk 0:02:14]}  Nb6 {[%clk 0:02:32]} 19. Ne5 {[%clk 0:02:04]}  Na4 {[%clk 0:02:17]} 20. Nc6 {[%clk 0:02:01]}  Qe8 {[%clk 0:01:15]} 21. Rc1 {[%clk 0:01:55]}  Nb6 {[%clk 0:01:09]} 22. Be5 {[%clk 0:01:39]}  Bxe5 {[%clk 0:00:39]} 23. Nxe5 {[%clk 0:01:40]}  Qb8 {[%clk 0:00:24]} 24. Qb2 {[%clk 0:01:38]}  Na4 {[%clk 0:00:22]} 25. Qa1 {[%clk 0:01:37]}  Qd6 {[%clk 0:00:20]} 26. Ng4 {[%clk 0:01:35]}  h5 {[%clk 0:00:17]} 27. Ne3 {[%clk 0:01:33]}  Qb4 {[%clk 0:00:16]} 28. Bg2 {[%clk 0:01:28]}  Rd8 {[%clk 0:00:17]} 29. h3 {[%clk 0:01:26]}  Bc8 {[%clk 0:00:15]} 30. Qe5 {[%clk 0:01:22]}  Qd6 {[%clk 0:00:13]} 31. Qxd6 {[%clk 0:01:22]}  exd6 {[%clk 0:00:14]} 32. Rc7 {[%clk 0:01:21]}  Kf8 {[%clk 0:00:13]} 33. f4 {[%clk 0:01:20]}  Nb6 {[%clk 0:00:09]} 34. e5 {[%clk 0:01:19]}  dxe5 {[%clk 0:00:09]} 35. fxe5 {[%clk 0:01:19]}  Rd7 {[%clk 0:00:09]} 36. Rc5 {[%clk 0:01:16]}  Rb7 {[%clk 0:00:09]} 37. d6 {[%clk 0:01:12]}  Rb8 {[%clk 0:00:09]} 38. Nd5 {[%clk 0:01:08]}  Be6 {[%clk 0:00:08]} 39. Nxb6 {[%clk 0:01:07]}  Rxb6 {[%clk 0:00:09]} 40. Bf1 {[%clk 0:00:57]}  f6 {[%clk 0:00:08]} 41. exf6 {[%clk 0:00:52]}  Rxd6 {[%clk 0:00:08]} 42. a4 {[%clk 0:00:52]}  bxa4 {[%clk 0:00:08]} 43. Ra5 {[%clk 0:00:52]}  Kf7 {[%clk 0:00:08]} 44. Rxa4 {[%clk 0:00:52]}  Kxf6 {[%clk 0:00:07]} 45. Rxa6 {[%clk 0:00:52]}  Rxa6 {[%clk 0:00:07]} 46. Bxa6 {[%clk 0:00:52]}  Bxh3 {[%clk 0:00:08]} 47. Kh2 {[%clk 0:00:53]}  Be6 {[%clk 0:00:09]} 48. Bf1 {[%clk 0:00:52]}  Kg5 {[%clk 0:00:09]} 49. Bg2 {[%clk 0:00:53]}  Bf5 {[%clk 0:00:10]} 50. Bf1 {[%clk 0:00:53]}  Kf6 {[%clk 0:00:10]} 51. Bg2 {[%clk 0:00:53]}  g5 {[%clk 0:00:11]} 52. Bf1 {[%clk 0:00:52]}  Kg6 {[%clk 0:00:11]} 53. Bg2 {[%clk 0:00:52]}  Be6 {[%clk 0:00:12]} 54. Bf1 {[%clk 0:00:52]}  g4 {[%clk 0:00:11]} 55. Bg2 {[%clk 0:00:50]}  Bf7 {[%clk 0:00:11]} 56. Bf1 {[%clk 0:00:50]}  Kf6 {[%clk 0:00:12]} 57. Bg2 {[%clk 0:00:50]}  Ke5 {[%clk 0:00:13]} 58. Bc6 {[%clk 0:00:49]}  Kd4 {[%clk 0:00:13]} 59. Kg1 {[%clk 0:00:48]}  Ke3 {[%clk 0:00:13]} 60. Kg2 {[%clk 0:00:47]}  Bg6 {[%clk 0:00:13]} 61. Kh2 {[%clk 0:00:44]}  Kf2 {[%clk 0:00:13]} 62. Bh1 {[%clk 0:00:36]}  Bd3 {[%clk 0:00:12]} 63. Bg2 {[%clk 0:00:36]}  Be2 {[%clk 0:00:12]} 64. Be4 {[%clk 0:00:19]}  Bf3 {[%clk 0:00:13]} 65. Bg6 {[%clk 0:00:12]}  h4 {[%clk 0:00:14]} 0-1

[Event "December 5 Early 2023"]
[Site "https://www.chess.com"]
[Date "2023.12.05"]
[Round "6"]
[White "Gruzman, Ilya"]
[Black "Olenik Campa, Rudi"]
[Result "0-1"]
[Board "96"]
[TimeControl "180+1"]
[WhiteFideId "2812703"]
[BlackFideId "14633264"]
[WhiteElo "2331"]
[BlackElo "2605"]
[WhiteTeam "ISR"]
[BlackTeam "SLO"]
[WhiteClock "0:00:01"]
[BlackClock "0:01:38"]

1. d4 {[%clk 0:03:00]}  Nf6 {[%clk 0:02:59]} 2. c4 {[%clk 0:03:00]}  g6 {[%clk 0:02:56]} 3. Nc3 {[%clk 0:02:59]}  Bg7 {[%clk 0:02:57]} 4. e4 {[%clk 0:03:00]}  d6 {[%clk 0:02:57]} 5. f4 {[%clk 0:03:00]}  O-O {[%clk 0:02:56]} 6. Nf3 {[%clk 0:03:00]}  c5 {[%clk 0:02:57]} 7. d5 {[%clk 0:03:00]}  e6 {[%clk 0:02:57]} 8. Be2 {[%clk 0:03:00]}  exd5 {[%clk 0:02:58]} 9. cxd5 {[%clk 0:03:01]}  Re8 {[%clk 0:02:58]} 10. Nd2 {[%clk 0:03:01]}  a6 {[%clk 0:02:57]} 11. a4 {[%clk 0:03:00]}  Nbd7 {[%clk 0:02:57]} 12. O-O {[%clk 0:03:00]}  Rb8 {[%clk 0:02:56]} 13. Qc2 {[%clk 0:03:00]}  b6 {[%clk 0:02:54]} 14. Nc4 {[%clk 0:02:52]}  Qc7 {[%clk 0:02:54]} 15. Nd2 {[%clk 0:02:50]}  Bb7 {[%clk 0:02:48]} 16. Nf3 {[%clk 0:02:42]}  Bc8 {[%clk 0:02:28]} 17. h3 {[%clk 0:02:37]}  c4 {[%clk 0:02:28]} 18. Be3 {[%clk 0:02:35]}  b5 {[%clk 0:02:28]} 19. axb5 {[%clk 0:02:34]}  axb5 {[%clk 0:02:29]} 20. Ra7 {[%clk 0:02:34]}  Qd8 {[%clk 0:02:27]} 21. Rfa1 {[%clk 0:02:28]}  b4 {[%clk 0:02:26]} 22. Nd1 {[%clk 0:02:14]}  Rxe4 {[%clk 0:02:26]} 23. Bxc4 {[%clk 0:02:12]}  Nb6 {[%clk 0:02:25]} 24. Bd3 {[%clk 0:01:59]}  Re8 {[%clk 0:02:21]} 25. Ng5 {[%clk 0:01:47]}  Nbxd5 {[%clk 0:02:18]} 26. Bd4 {[%clk 0:01:30]}  Rb7 {[%clk 0:02:13]} 27. Rxb7 {[%clk 0:01:26]}  Bxb7 {[%clk 0:02:14]} 28. Ra7 {[%clk 0:01:26]}  Qb8 {[%clk 0:02:10]} 29. Qf2 {[%clk 0:00:51]}  h6 {[%clk 0:02:09]} 30. Nf3 {[%clk 0:00:40]}  Nxf4 {[%clk 0:02:09]} 31. Bf1 {[%clk 0:00:38]}  Ne6 {[%clk 0:02:07]} 32. Be3 {[%clk 0:00:38]}  Nd5 {[%clk 0:02:07]} 33. Ba6 {[%clk 0:00:27]}  Bxa6 {[%clk 0:02:04]} 34. Rxa6 {[%clk 0:00:28]}  Nxe3 {[%clk 0:02:04]} 35. Nxe3 {[%clk 0:00:27]}  Nc5 {[%clk 0:02:04]} 36. Ra1 {[%clk 0:00:15]}  Ne4 {[%clk 0:01:59]} 37. Qe2 {[%clk 0:00:14]}  Qb6 {[%clk 0:01:57]} 38. Kh2 {[%clk 0:00:10]}  d5 {[%clk 0:01:54]} 39. Rd1 {[%clk 0:00:08]}  Qd6+ {[%clk 0:01:52]} 40. Kg1 {[%clk 0:00:07]}  d4 {[%clk 0:01:53]} 41. Nc4 {[%clk 0:00:07]}  Qc5 {[%clk 0:01:52]} 42. Qd3 {[%clk 0:00:06]}  f5 {[%clk 0:01:46]} 43. b3 {[%clk 0:00:05]}  Kh7 {[%clk 0:01:45]} 44. Ra1 {[%clk 0:00:02]}  Qc7 {[%clk 0:01:41]} 45. Nxd4 {[%clk 0:00:02]}  Rd8 {[%clk 0:01:41]} 46. Ne6 {[%clk 0:00:02]}  Rxd3 {[%clk 0:01:39]} 47. Nxc7 {[%clk 0:00:02]}  Bxa1 {[%clk 0:01:39]} 48. Na5 {[%clk 0:00:02]}  Be5 {[%clk 0:01:38]} 49. Na6 {[%clk 0:00:01]}  Rd1# {[%clk 0:01:38]} 0-1

[Event "December 5 Early 2023"]
[Site "https://www.chess.com"]
[Date "2023.12.05"]
[Round "6"]
[White "Maltsevskaya, Aleksandra"]
[Black "Borawski, Jakub"]
[Result "1-0"]
[Board "98"]
[TimeControl "180+1"]
[WhiteFideId "24174041"]
[BlackFideId "1143000"]
[WhiteElo "2602"]
[BlackElo "2254"]
[WhiteTeam "POL"]
[BlackTeam "POL"]
[WhiteClock "0:00:16"]
[BlackClock "0:01:11"]

1. e4 {[%clk 0:01:48]}  e5 {[%clk 0:02:57]} 2. Nf3 {[%clk 0:01:47]}  Nc6 {[%clk 0:02:58]} 3. Bb5 {[%clk 0:01:48]}  a6 {[%clk 0:02:58]} 4. Ba4 {[%clk 0:01:48]}  Nf6 {[%clk 0:02:57]} 5. O-O {[%clk 0:01:49]}  Be7 {[%clk 0:02:58]} 6. Re1 {[%clk 0:01:48]}  b5 {[%clk 0:02:58]} 7. Bb3 {[%clk 0:01:49]}  d6 {[%clk 0:02:58]} 8. c3 {[%clk 0:01:49]}  O-O {[%clk 0:02:58]} 9. h3 {[%clk 0:01:50]}  Nb8 {[%clk 0:02:58]} 10. d4 {[%clk 0:01:50]}  Nbd7 {[%clk 0:02:58]} 11. a3 {[%clk 0:01:50]}  Bb7 {[%clk 0:02:58]} 12. Nbd2 {[%clk 0:01:51]}  Re8 {[%clk 0:02:58]} 13. Ba2 {[%clk 0:01:51]}  Bf8 {[%clk 0:02:57]} 14. Ng5 {[%clk 0:01:42]}  Re7 {[%clk 0:02:57]} 15. b4 {[%clk 0:01:33]}  h6 {[%clk 0:02:56]} 16. Ngf3 {[%clk 0:01:30]}  exd4 {[%clk 0:02:52]} 17. Nxd4 {[%clk 0:01:30]}  Nxe4 {[%clk 0:02:41]} 18. Nxe4 {[%clk 0:01:04]}  Rxe4 {[%clk 0:02:41]} 19. Rxe4 {[%clk 0:00:54]}  Bxe4 {[%clk 0:02:41]} 20. Bxh6 {[%clk 0:00:48]}  gxh6 {[%clk 0:02:40]} 21. Qg4+ {[%clk 0:00:47]}  Bg7 {[%clk 0:02:32]} 22. Qxe4 {[%clk 0:00:47]}  Qe8 {[%clk 0:02:16]} 23. Bxf7+ {[%clk 0:00:31]}  Kxf7 {[%clk 0:02:10]} 24. Qd5+ {[%clk 0:00:31]}  Kf8 {[%clk 0:01:59]} 25. Ne6+ {[%clk 0:00:30]}  Ke7 {[%clk 0:01:36]} 26. Nxc7 {[%clk 0:00:19]}  Qg6 {[%clk 0:01:29]} 27. Re1+ {[%clk 0:00:16]}  Be5 {[%clk 0:01:25]} 28. Qxa8 {[%clk 0:00:16]}  Qf6 {[%clk 0:01:11]} 29. Nd5+ {[%clk 0:00:16]} 1-0

[Event "December 5 Early 2023"]
[Site "https://www.chess.com"]
[Date "2023.12.05"]
[Round "6"]
[White "Mishra, Manoj"]
[Black "Toman, Ondrej"]
[Result "0-1"]
[Board "99"]
[TimeControl "180+1"]
[WhiteFideId "5006007"]
[BlackFideId "344516"]
[WhiteElo "2247"]
[BlackElo "2600"]
[WhiteTeam "IND"]
[BlackTeam "CZE"]
[WhiteClock "0:00:21"]
[BlackClock "0:01:37"]

1. d4 {[%clk 0:03:00]}  Nf6 {[%clk 0:02:59]} 2. Bg5 {[%clk 0:02:56]}  e6 {[%clk 0:02:58]} 3. e3 {[%clk 0:02:55]}  c5 {[%clk 0:02:55]} 4. c3 {[%clk 0:02:48]}  h6 {[%clk 0:02:54]} 5. Bh4 {[%clk 0:02:41]}  Nc6 {[%clk 0:02:53]} 6. Bd3 {[%clk 0:02:38]}  b6 {[%clk 0:02:47]} 7. Nf3 {[%clk 0:02:34]}  Be7 {[%clk 0:02:44]} 8. Nbd2 {[%clk 0:02:32]}  Bb7 {[%clk 0:02:44]} 9. Nc4 {[%clk 0:02:31]}  O-O {[%clk 0:02:40]} 10. O-O {[%clk 0:02:27]}  cxd4 {[%clk 0:02:37]} 11. exd4 {[%clk 0:02:26]}  d6 {[%clk 0:02:37]} 12. Bc2 {[%clk 0:02:23]}  Ba6 {[%clk 0:02:27]} 13. b3 {[%clk 0:02:19]}  d5 {[%clk 0:02:24]} 14. Ne3 {[%clk 0:02:14]}  Bxf1 {[%clk 0:02:23]} 15. Qxf1 {[%clk 0:02:10]}  Ne4 {[%clk 0:02:16]} 16. Bxe7 {[%clk 0:02:06]}  Nxe7 {[%clk 0:02:17]} 17. Bxe4 {[%clk 0:02:01]}  dxe4 {[%clk 0:02:18]} 18. Nd2 {[%clk 0:02:02]}  f5 {[%clk 0:02:16]} 19. Qc4 {[%clk 0:02:01]}  Qd7 {[%clk 0:02:15]} 20. f3 {[%clk 0:01:56]}  Rac8 {[%clk 0:02:14]} 21. Qb4 {[%clk 0:01:51]}  Nd5 {[%clk 0:02:10]} 22. Nxd5 {[%clk 0:01:49]}  exd5 {[%clk 0:02:09]} 23. f4 {[%clk 0:01:46]}  Rc6 {[%clk 0:02:04]} 24. Nf1 {[%clk 0:01:44]}  Rfc8 {[%clk 0:02:00]} 25. Rc1 {[%clk 0:01:40]}  Qd6 {[%clk 0:01:58]} 26. Qxd6 {[%clk 0:01:34]}  Rxd6 {[%clk 0:01:59]} 27. Ne3 {[%clk 0:01:35]}  g6 {[%clk 0:01:59]} 28. Kf2 {[%clk 0:01:31]}  Kf7 {[%clk 0:01:59]} 29. Ke2 {[%clk 0:01:31]}  Ke6 {[%clk 0:01:56]} 30. c4 {[%clk 0:01:27]}  dxc4 {[%clk 0:01:54]} 31. d5+ {[%clk 0:01:27]}  Rxd5 {[%clk 0:01:47]} 32. Nxd5 {[%clk 0:01:01]}  Kxd5 {[%clk 0:01:48]} 33. Rd1+ {[%clk 0:01:00]}  Ke6 {[%clk 0:01:43]} 34. Rc1 {[%clk 0:00:21]}  cxb3 {[%clk 0:01:37]} 0-1

[Event "December 5 Early 2023"]
[Site "https://www.chess.com"]
[Date "2023.12.05"]
[Round "6"]
[White "Karthik Rajaa"]
[Black "Kotyk, Michael"]
[Result "1-0"]
[Board "102"]
[TimeControl "180+1"]
[WhiteFideId "25035215"]
[BlackFideId "16214501"]
[WhiteElo "2698"]
[BlackElo "2517"]
[WhiteTeam "IND"]
[BlackTeam "GER"]
[WhiteClock "0:00:58"]
[BlackClock "0:00:19"]

1. Nf3 {[%clk 0:03:00]}  Nf6 {[%clk 0:02:08]} 2. c4 {[%clk 0:03:00]}  c5 {[%clk 0:02:07]} 3. Nc3 {[%clk 0:03:00]}  Nc6 {[%clk 0:02:03]} 4. e3 {[%clk 0:03:00]}  e5 {[%clk 0:02:03]} 5. d4 {[%clk 0:02:59]}  e4 {[%clk 0:02:01]} 6. Ne5 {[%clk 0:02:59]}  Bd6 {[%clk 0:02:01]} 7. Nxc6 {[%clk 0:02:54]}  dxc6 {[%clk 0:01:51]} 8. dxc5 {[%clk 0:02:52]}  Bxc5 {[%clk 0:01:52]} 9. Qxd8+ {[%clk 0:02:53]}  Kxd8 {[%clk 0:01:53]} 10. a3 {[%clk 0:02:54]}  a5 {[%clk 0:01:52]} 11. Bd2 {[%clk 0:02:50]}  Bd6 {[%clk 0:01:42]} 12. Na4 {[%clk 0:02:45]}  Kc7 {[%clk 0:01:38]} 13. Bc3 {[%clk 0:02:36]}  Bf5 {[%clk 0:01:38]} 14. h3 {[%clk 0:02:29]}  Rhe8 {[%clk 0:01:37]} 15. g4 {[%clk 0:02:28]}  Bg6 {[%clk 0:01:37]} 16. Be2 {[%clk 0:02:15]}  Be5 {[%clk 0:01:36]} 17. h4 {[%clk 0:02:09]}  h5 {[%clk 0:01:24]} 18. g5 {[%clk 0:02:07]}  Nd7 {[%clk 0:01:24]} 19. Bd4 {[%clk 0:01:50]}  b6 {[%clk 0:01:19]} 20. O-O-O {[%clk 0:01:44]}  c5 {[%clk 0:01:14]} 21. Bxe5+ {[%clk 0:01:43]}  Nxe5 {[%clk 0:01:15]} 22. Nc3 {[%clk 0:01:43]}  Nd3+ {[%clk 0:01:12]} 23. Bxd3 {[%clk 0:01:43]}  exd3 {[%clk 0:01:13]} 24. Kd2 {[%clk 0:01:41]}  Rad8 {[%clk 0:01:08]} 25. f3 {[%clk 0:01:36]}  Kc6 {[%clk 0:01:06]} 26. a4 {[%clk 0:01:34]}  f6 {[%clk 0:00:59]} 27. Rhg1 {[%clk 0:01:32]}  Bf7 {[%clk 0:00:58]} 28. b3 {[%clk 0:01:31]}  f5 {[%clk 0:00:44]} 29. g6 {[%clk 0:01:22]}  Be6 {[%clk 0:00:42]} 30. Rg5 {[%clk 0:01:22]}  Rh8 {[%clk 0:00:37]} 31. Rf1 {[%clk 0:01:18]}  Rdf8 {[%clk 0:00:28]} 32. Kxd3 {[%clk 0:01:17]}  Rh6 {[%clk 0:00:25]} 33. Ke2 {[%clk 0:01:06]}  Rf6 {[%clk 0:00:19]} 34. Rfg1 {[%clk 0:01:06]}  f4 {[%clk 0:00:20]} 35. e4 {[%clk 0:01:05]}  Rf8 {[%clk 0:00:18]} 36. Nd5 {[%clk 0:01:05]}  Bxd5 {[%clk 0:00:18]} 37. cxd5+ {[%clk 0:01:04]}  Kd6 {[%clk 0:00:19]} 38. Kd3 {[%clk 0:01:04]}  Ke7 {[%clk 0:00:17]} 39. e5 {[%clk 0:01:04]}  Rhh8 {[%clk 0:00:17]} 40. Ke4 {[%clk 0:01:03]}  Rd8 {[%clk 0:00:16]} 41. Rf5 {[%clk 0:01:02]}  Rhf8 {[%clk 0:00:16]} 42. Rxf8 {[%clk 0:01:02]}  Rxf8 {[%clk 0:00:17]} 43. Rg5 {[%clk 0:01:01]}  Rb8 {[%clk 0:00:17]} 44. Rf5 {[%clk 0:00:59]}  b5 {[%clk 0:00:18]} 45. Rf7+ {[%clk 0:00:58]}  Ke8 {[%clk 0:00:19]} 46. Rxg7 {[%clk 0:00:58]}  bxa4 {[%clk 0:00:20]} 47. Rg8+ {[%clk 0:00:58]}  Ke7 {[%clk 0:00:19]} 48. d6+ {[%clk 0:00:58]}  Ke6 {[%clk 0:00:19]} 49. Rxb8 {[%clk 0:00:57]}  a3 {[%clk 0:00:19]} 50. Rb7 {[%clk 0:00:57]}  a2 {[%clk 0:00:19]} 51. Re7# {[%clk 0:00:58]} 1-0

[Event "December 5 Early 2023"]
[Site "https://www.chess.com"]
[Date "2023.12.05"]
[Round "6"]
[White "Sadubayev, Airat"]
[Black "Estrada Nieto, Julian"]
[Result "0-1"]
[Board "103"]
[TimeControl "180+1"]
[WhiteFideId "13713264"]
[BlackFideId "5101018"]
[WhiteElo "2677"]
[BlackElo "2509"]
[WhiteTeam "KAZ"]
[BlackTeam "ESP"]
[WhiteClock "0:00:00"]
[BlackClock "0:00:14"]

1. d4 {[%clk 0:03:00]}  d5 {[%clk 0:02:59]} 2. c4 {[%clk 0:03:00]}  dxc4 {[%clk 0:02:59]} 3. e4 {[%clk 0:02:59]}  Nf6 {[%clk 0:02:59]} 4. e5 {[%clk 0:02:57]}  Nd5 {[%clk 0:02:59]} 5. Bxc4 {[%clk 0:02:58]}  Nb6 {[%clk 0:03:00]} 6. Bd3 {[%clk 0:02:56]}  Nc6 {[%clk 0:03:01]} 7. Nf3 {[%clk 0:02:55]}  Bg4 {[%clk 0:02:51]} 8. Be3 {[%clk 0:02:43]}  e6 {[%clk 0:02:49]} 9. Nc3 {[%clk 0:02:42]}  Be7 {[%clk 0:02:48]} 10. O-O {[%clk 0:02:42]}  O-O {[%clk 0:02:47]} 11. h3 {[%clk 0:02:42]}  Bxf3 {[%clk 0:02:44]} 12. Qxf3 {[%clk 0:02:41]}  Nxd4 {[%clk 0:02:44]} 13. Qe4 {[%clk 0:01:44]}  Nf5 {[%clk 0:02:31]} 14. g4 {[%clk 0:01:41]}  g6 {[%clk 0:02:26]} 15. gxf5 {[%clk 0:01:40]}  exf5 {[%clk 0:02:23]} 16. Qd4 {[%clk 0:01:31]}  Qxd4 {[%clk 0:02:12]} 17. Bxd4 {[%clk 0:01:31]}  Rfd8 {[%clk 0:02:13]} 18. Bxb6 {[%clk 0:01:30]}  Rxd3 {[%clk 0:02:04]} 19. Bxc7 {[%clk 0:01:13]}  Rxh3 {[%clk 0:01:55]} 20. Rad1 {[%clk 0:01:11]}  Bc5 {[%clk 0:01:51]} 21. Nd5 {[%clk 0:01:00]}  Kg7 {[%clk 0:01:46]} 22. Nf6 {[%clk 0:00:53]}  Rc8 {[%clk 0:01:38]} 23. Rd7 {[%clk 0:00:50]}  Kf8 {[%clk 0:01:17]} 24. e6 {[%clk 0:00:38]}  Be7 {[%clk 0:01:12]} 25. Nd5 {[%clk 0:00:35]}  fxe6 {[%clk 0:00:46]} 26. Nxe7 {[%clk 0:00:32]}  Ke8 {[%clk 0:00:45]} 27. Rfd1 {[%clk 0:00:27]}  Ra8 {[%clk 0:00:44]} 28. Be5 {[%clk 0:00:16]}  g5 {[%clk 0:00:42]} 29. Bf6 {[%clk 0:00:14]}  Kf7 {[%clk 0:00:39]} 30. Bxg5 {[%clk 0:00:13]}  Ke8 {[%clk 0:00:34]} 31. f4 {[%clk 0:00:10]}  h6 {[%clk 0:00:34]} 32. Bf6 {[%clk 0:00:09]}  Rg3+ {[%clk 0:00:28]} 33. Kf2 {[%clk 0:00:09]}  Rg4 {[%clk 0:00:28]} 34. Be5 {[%clk 0:00:09]}  Rh4 {[%clk 0:00:28]} 35. R1d6 {[%clk 0:00:08]}  a5 {[%clk 0:00:23]} 36. Bf6 {[%clk 0:00:08]}  Rxf4+ {[%clk 0:00:23]} 37. Ke3 {[%clk 0:00:08]}  Re4+ {[%clk 0:00:23]} 38. Kf3 {[%clk 0:00:08]}  Ra6 {[%clk 0:00:21]} 39. Rd8+ {[%clk 0:00:07]}  Kf7 {[%clk 0:00:20]} 40. Rxa6 {[%clk 0:00:05]}  bxa6 {[%clk 0:00:20]} 41. Ng8 {[%clk 0:00:04]}  Re1 {[%clk 0:00:17]} 42. Bc3 {[%clk 0:00:04]}  Rf1+ {[%clk 0:00:16]} 43. Ke2 {[%clk 0:00:05]}  Rh1 {[%clk 0:00:16]} 44. Nxh6+ {[%clk 0:00:06]}  Rxh6 {[%clk 0:00:15]} 45. Rd7+ {[%clk 0:00:06]}  Kg6 {[%clk 0:00:15]} 46. Ra7 {[%clk 0:00:07]}  Rh2+ {[%clk 0:00:15]} 47. Kf3 {[%clk 0:00:07]}  Rh3+ {[%clk 0:00:14]} 48. Kf4 {[%clk 0:00:08]}  Rh4+ {[%clk 0:00:14]} 49. Ke5 {[%clk 0:00:08]}  Re4+ {[%clk 0:00:14]} 50. Kd6 {[%clk 0:00:09]}  f4 {[%clk 0:00:14]} 51. Rxa6 {[%clk 0:00:00]}  f3 {[%clk 0:00:14]} 0-1